lending/lending_fUSD_20240522
["ID","MTS","AMOUNT","RATE_DAILY","PERIOD"]
[327716492,1716369033091,-165.44,0.00012442,2]
[327716493,1716369033100,-200.0,0.000125,4]
[327716494,1716369033109,-167.66,0.00012526,2]
[327716495,1716369033119,-500.0,0.000126,4]
[327716496,1716369033128,-250.0,0.00012613,2]
[327716497,1716369033138,-800.0,0.000127,4]
[327716498,1716369033147,-1011.73581352,0.000128,4]
[327716499,1716369033159,-88.26418648,0.000128,4]
[327716500,1716369033168,-252.27923315,0.00012869,2]
[327716501,1716369033177,-362.83446355,0.000129,2]
[327716502,1716369033204,-6606.94943645,0.000129,2]
[327716503,1716369033214,-1400.0,0.000129,4]
[327716504,1716369033223,-175.3412809,0.000129,2]
[327716505,1716369033232,-533.52204132,0.000129,2]
[327716506,1716369033242,-7500.0,0.000129,2]
[327716507,1716369033251,-640.04550114,0.000129,2]
[327716508,1716369033261,-248.1438063,0.000129,2]
[327716509,1716369033272,-210.86154424,0.000129,2]
[327716510,1716369033284,-333.6779221,0.000129,2]
[327716511,1716369033294,-3151.53375704,0.00012968,2]
[327716512,1716369033303,-800.0,0.00012986,2]
[327716513,1716369033314,-175.9860672,0.00012989,2]
[327716514,1716369033324,-163.18099657,0.0001299,2]
[327716515,1716369033334,-150.66,0.0001299,2]
[327716516,1716369033343,-150.66,0.0001299,2]
[327716517,1716369033354,-150.66,0.0001299,2]
[327716518,1716369033363,-175.9860672,0.00012991,2]
[327716519,1716369033373,-184.27617729,0.00012998,2]
[327716520,1716369033382,-939.10970596,0.00012998,2]
[327716521,1716369033392,-223.37937242,0.00012998,2]
[327716522,1716369033402,-707.19968745,0.00012998,2]
[327716523,1716369033411,-374.80826011,0.00012998,2]
[327716524,1716369033421,-4529.87627298,0.00012998,2]
[327716525,1716369033433,-467.45691708,0.00012998,2]
[327716526,1716369033444,-591.826501,0.00012998,2]
[327716527,1716369033456,-463.05,0.00012998,2]
[327716528,1716369033468,-664.49634,0.00012998,2]
[327716529,1716369033498,-236.52654492,0.00012998,2]
[327716530,1716369033507,-521.20433106,0.00012998,2]
[327716531,1716369033517,-61.54912402,0.00012999,2]
[327716532,1716369033528,-100.19051142,0.00012999,2]
[327716533,1716369033538,-7233.62050348,0.00012999,2]
[327716547,1716369038473,-692.79472096,0.00012999,2]
[327716548,1716369038486,-508.66378435,0.00012999,2]
[327716549,1716369038498,-1220.20775906,0.00012999,2]
[327716550,1716369038510,-406.46916604,0.00012999,2]
[327716551,1716369038522,-872.97368627,0.00012999,2]
[327716552,1716369038532,-9127.07467693,0.00013,2]
[327716553,1716369038544,-347.42345697,0.00013,2]
[327716554,1716369038556,-428.61941707,0.00013,2]
[327716555,1716369038570,-1599.50354593,0.00013,2]
[327716556,1716369038582,-2294.90456455,0.00013,2]
[327716557,1716369039003,-804.39789839,0.00013,2]
[327716558,1716369039019,-16934.04267543,0.00013,2]
[327716559,1716369039035,-1425.94447234,0.00013,2]
[327716561,1716369040398,-450.0,0.00012047,2]
[327716562,1716369040645,-4159.3293,0.00012047,2]
[327716563,1716369040664,-18691.06048344,0.00013,2]
[327716564,1716369040680,-7006.4,0.00013,2]
[327716565,1716369040699,-1805.26599995,0.00013,2]
[327716566,1716369040717,-9622.15705929,0.00013,2]
[327716567,1716369040750,-405.50991921,0.00013,2]
[327716568,1716369040770,-451.9375,0.00013,2]
[327716589,1716369043248,-2882.35362957,0.00013,2]
[327716593,1716369043266,-5501.14189452,0.00013,2]
[327716601,1716369044021,-57243.87084599,0.00013,2]
[327716602,1716369044033,-9214.47023561,0.00013,2]
[327716603,1716369044088,-1067.81353758,0.00013,2]
[327716604,1716369044100,-455.24917089,0.00013,2]
[327716605,1716369044115,-3500.0,0.00013,2]
[327716606,1716369044127,-504.6192,0.00013,2]
[327716607,1716369044163,-13785.9425727,0.00013,2]
[327716608,1716369044176,-16302.4784373,0.00013,2]
[327716610,1716369048156,-959.66047797,0.000129,2]
[327716611,1716369048170,-694.56952203,0.000129,2]
[327716612,1716369048244,-1499.90008,0.000129,2]
[327716613,1716369048256,-10969.87752,0.000129,2]
[327716614,1716369048265,-161.69212602,0.00012999,2]
[327716615,1716369048275,-21776.19639151,0.00013,2]
[327716616,1716369048329,-255.637,0.00013,2]
[327716655,1716369054739,93421.89250558,0.00011698,2]
[327716656,1716369059852,750.94633531,0.00011699,2]
[327716661,1716369181695,-250.0,0.00012226,2]
[327716662,1716369181716,-1392.02800715,0.00012248,2]
[327716663,1716369181737,-6516.81460777,0.00012249,2]
[327716664,1716369181758,-8680.15738508,0.00012249,2]
[327716666,1716369246902,-1849.30955922,0.00012249,2]
[327716667,1716369246924,-2458.69044078,0.0001225,2]
[327716668,1716369328723,314.49,9.723e-05,2]
[327716669,1716369329080,314.49,0.00011987,2]
[327716670,1716369333008,2318.96,0.00011641,2]
[327716671,1716369436894,250.0,0.00011632,2]
[327716672,1716369458476,655.91,0.00011632,2]
[327716673,1716369461370,157.052218,0.0003,30]
[327716674,1716369465508,157.052218,0.0003,31]
[327716675,1716369471347,157.052218,0.0003,32]
[327716676,1716369475992,157.052218,0.0003,33]
[327716677,1716369558044,1318.76,0.00011645,2]
[327716678,1716369569327,245.8,0.00011733,2]
[327716679,1716369569497,245.8,0.00011765,2]
[327716680,1716369569708,245.8,0.00011797,2]
[327716681,1716369569943,245.8,0.00011829,2]
[327716682,1716369570151,245.8,0.00011861,2]
[327716683,1716369570374,245.8,0.00011893,2]
[327716684,1716369570601,245.8,0.00011926,2]
[327716685,1716369570847,245.8,0.00011958,2]
[327716686,1716369571254,245.8,0.0001199,2]
[327716687,1716369578906,2434.69,0.00011645,2]
[327716688,1716369580477,1833.31,0.00011536,2]
[327716689,1716369631022,569.13,0.00011549,2]
[327716690,1716369641532,1852.42,0.00011538,2]
[327716691,1716369659639,600.97,0.00011632,2]
[327716692,1716369708258,496.97,0.00011632,2]
[327716693,1716369759429,2333.98,0.00011543,2]
[327716694,1716369801305,283.04,9.627e-05,2]
[327716695,1716369801626,283.04,0.00011891,2]
[327716696,1716369930681,250.0,0.00011554,2]
[327716697,1716369961403,157.052218,0.0003,34]
[327716698,1716369964735,157.052218,0.0003,33]
[327716699,1716369967477,157.052218,0.0003,32]
[327716700,1716369970580,157.052218,0.0003,31]
[327716701,1716369973915,157.052218,0.0003,30]
[327716702,1716369985726,644.91,0.00011554,2]
[327716703,1716370038191,-150.0,0.00012019,2]
[327716704,1716370038212,-640.67393536,0.0001202,2]
[327716705,1716370098271,150.21,0.00011705,2]
[327716706,1716370098473,150.21,0.00011741,2]
[327716707,1716370098713,150.21,0.00011777,2]
[327716708,1716370098951,150.21,0.00011813,2]
[327716709,1716370099151,150.21,0.00011849,2]
[327716710,1716370099354,150.21,0.00011885,2]
[327716711,1716370099581,150.21,0.00011921,2]
[327716712,1716370099824,150.21,0.00011956,2]
[327716713,1716370100055,150.21,0.00011992,2]
[327716715,1716370170759,11836.472,0.0001192,2]
[327716716,1716370224320,25000.0,0.0003,30]
[327716727,1716370232491,-1647.10744656,0.0001202,2]
[327716728,1716370232673,-8241.68556238,0.0001202,2]
[327716729,1716370232682,-1788.45546064,0.00012021,2]
[327716730,1716370232692,-150.21,0.00012028,2]
[327716731,1716370232703,-150.21,0.00012064,2]
[327716732,1716370232712,-150.21,0.000121,2]
[327716733,1716370232721,-150.21,0.00012136,2]
[327716734,1716370232731,-150.21,0.00012172,2]
[327716735,1716370232743,-150.21,0.00012208,2]
[327716737,1716370232752,-150.21,0.00012244,2]
[327716739,1716370232763,-499.99,0.00012247,2]
[327716741,1716370232779,-150.99,0.00012247,2]
[327716743,1716370232792,-150.99,0.00012247,2]
[327716744,1716370232801,-150.21,0.00012279,2]
[327716747,1716370232811,-154.13,0.00012286,2]
[327716749,1716370232820,-154.13,0.00012289,2]
[327716751,1716370232830,-154.13,0.00012293,2]
[327716752,1716370232839,-154.13,0.00012297,2]
[327716754,1716370232848,-154.13,0.000123,2]
[327716756,1716370232859,-154.13,0.00012304,2]
[327716758,1716370232868,-154.13,0.00012308,2]
[327716759,1716370232878,-154.13,0.00012311,2]
[327716760,1716370232887,-154.13,0.00012315,2]
[327716761,1716370232897,-150.21,0.00012315,2]
[327716762,1716370232906,-154.13,0.00012318,2]
[327716763,1716370232916,-154.13,0.00012322,2]
[327716764,1716370232935,-154.13,0.00012326,2]
[327716765,1716370232945,-154.13,0.00012329,2]
[327716766,1716370232955,-154.13,0.00012333,2]
[327716767,1716370232965,-154.13,0.00012337,2]
[327716768,1716370232974,-154.13,0.0001234,2]
[327716769,1716370232984,-154.13,0.00012344,2]
[327716770,1716370232993,-154.13,0.00012347,2]
[327716771,1716370233003,-1294.66870837,0.00012348,2]
[327716772,1716370233013,-756.32,0.00012466,2]
[327716773,1716370233022,-172.27,0.00012844,2]
[327716774,1716370233032,-881.9208,0.00012898,2]
[327716775,1716370233041,-601.36694089,0.00012899,2]
[327716776,1716370233051,-3137.92816433,0.000129,2]
[327716777,1716370233064,-3001.13681457,0.000129,2]
[327716778,1716370233076,-7084.9057211,0.000129,2]
[327716779,1716370233086,-2932.32737596,0.000129,2]
[327716780,1716370233096,-1609.47014,0.000129,2]
[327716781,1716370233106,-2500.0,0.000129,2]
[327716782,1716370233116,-466.83178612,0.000129,2]
[327716783,1716370233125,-313.6834342,0.000129,2]
[327716784,1716370233135,-2861.71105162,0.000129,2]
[327716785,1716370233144,-1609.47013,0.0001297,2]
[327716786,1716370233327,-703.9442689,0.00012987,2]
[327716787,1716370233344,-473.8271879,0.00012987,2]
[327716788,1716370233353,-2404.3289142,0.00012989,2]
[327716789,1716370233366,-438.97877864,0.00012989,2]
[327716796,1716370238629,-710.733,0.00012989,2]
[327716797,1716370238773,-9703.96014076,0.00012989,2]
[327716798,1716370238784,-150.66,0.0001299,2]
[327716799,1716370238794,-11532.7254316,0.00012991,2]
[327716800,1716370238804,-473.8271879,0.00012991,2]
[327716801,1716370238817,-1205.74461398,0.00012996,2]
[327716802,1716370238828,-364.3773585,0.00012996,2]
[327716803,1716370238838,-1429.42565514,0.00012996,2]
[327716804,1716370238848,-3615.0558053,0.00012997,2]
[327716805,1716370238858,-99116.44130931,0.00012998,2]
[327716806,1716370238870,-1080.98611576,0.00012999,2]
[327716807,1716370238880,-473608.92544984,0.00013,2]
[327716808,1716370238892,-349.83692967,0.00013,2]
[327716811,1716370238919,-14930.10932913,0.00013,2]
[327716812,1716370238931,-3701.61891719,0.00013,2]
[327716827,1716370243535,-6327.03361924,0.00013,2]
[327716829,1716370243938,-880.21195323,0.00013,2]
[327716830,1716370243950,-667.07616621,0.00013,2]
[327716832,1716370243962,-4807.35642069,0.00013,2]
[327716837,1716370246765,-16687.02156146,0.00013,2]
[327716840,1716370260876,592.38,0.00010959,2]
[327716843,1716370323707,254.73,0.00011219,2]
[327716845,1716370408340,90966.73,0.0003,30]
[327716846,1716370456232,500.0,0.0003,30]
[327716847,1716370470214,7149.36484316,6.94e-05,2]
[327716848,1716370920579,251.37928582,0.00011698,2]
[327716849,1716370980930,241.99,0.00010588,2]
[327716850,1716371094662,155.79,0.00010111,2]
[327716851,1716371241500,-1575.39,0.00012331,2]
[327716852,1716371241521,-464.25109419,0.00012331,2]
[327716853,1716371241543,-884.04,0.00012413,2]
[327716854,1716371241564,-150.0,0.00012525,2]
[327716855,1716371241586,-250.0,0.00012543,2]
[327716856,1716371241606,-10529.4669443,0.00012602,2]
[327716857,1716371241628,-163.62,0.00012603,2]
[327716858,1716371241652,-150.0,0.00012637,2]
[327716859,1716371241674,-164.13,0.00012639,2]
[327716860,1716371241695,-498.74,0.00012639,2]
[327716861,1716371241716,-397.57,0.00012673,2]
[327716862,1716371241737,-241.99,0.00012852,2]
[327716863,1716371241760,-1807.83986,0.0001287,2]
[327716864,1716371241785,-1524.03025762,0.000129,2]
[327716865,1716371241808,-313.68343413,0.000129,2]
[327716866,1716371241828,-3735.109,0.00012928,2]
[327716867,1716371241853,-3624.316,0.00012956,2]
[327716868,1716371241876,-3647.467,0.00012984,2]
[327716869,1716371241896,-315.8847919,0.00012989,2]
[327716870,1716371241917,-499.99,0.0001299,2]
[327716871,1716371241938,-8636.4913742,0.0001299,2]
[327716872,1716371241960,-150.67,0.0001299,2]
[327716873,1716371241985,-1401.14,0.00012991,2]
[327716874,1716371242006,-7107.1046717,0.00012991,2]
[327716875,1716371242030,-1767.07557196,0.00012991,2]
[327716879,1716371328412,-250.0,0.00012639,2]
[327716880,1716371328434,-430.73179397,0.000129,2]
[327716881,1716371328458,-1820.0215852,0.000129,2]
[327716882,1716371328478,-1907.80736776,0.000129,2]
[327716883,1716371328498,-3683.161,0.00012945,2]
[327716884,1716371328519,-3608.962,0.00012973,2]
[327716885,1716371328542,-3723.666,0.00012982,2]
[327716886,1716371328562,-1725.2039544,0.00012989,2]
[327716887,1716371328584,-315.8847919,0.00012991,2]
[327716888,1716371328605,-315.8847919,0.00012991,2]
[327716889,1716371328626,-315.8847919,0.00012991,2]
[327716890,1716371328647,-1792.9541119,0.00012991,2]
[327716891,1716371328669,-1860.7042694,0.00012991,2]
[327716892,1716371328690,-1928.4544269,0.00012991,2]
[327716893,1716371328711,-156.25741553,0.00012998,2]
[327716894,1716371328732,-6164.42169924,0.00012998,2]
[327716900,1716371376154,25000.0,0.0003,30]
[327716916,1716371431895,-684.71908266,0.000129,2]
[327716917,1716371431907,-2160.15224478,0.000129,2]
[327716918,1716371431917,-313.68343413,0.000129,2]
[327716919,1716371431927,-1271.8715785,0.000129,2]
[327716920,1716371431936,-631.76958403,0.00012989,2]
[327716921,1716371431946,-1546.49390506,0.00012998,2]
[327716922,1716371431955,-1000.0,0.00012999,2]
[327716923,1716371431965,-1080.98611576,0.00012999,2]
[327716924,1716371431974,-5802.16232305,0.00013,2]
[327716925,1716371431985,-10000.272,0.00013,2]
[327716926,1716371432995,-115566.63490069,0.00013,2]
[327716927,1716371433006,-34640.0,0.00013,2]
[327716928,1716371433034,-9560.98838455,0.00013,2]
[327716929,1716371438536,-474689.9115656,0.00013,2]
[327716949,1716371440098,-836.65063408,0.00013,2]
[327716950,1716371440318,-348.954301,0.00013,2]
[327716951,1716371440330,-982.0491942,0.00013,2]
[327716952,1716371440672,230.23,0.00010352,2]
[327716957,1716371443581,-230.23,0.00012616,2]
[327716958,1716371443591,-9888.10431733,0.00013,2]
[327716959,1716371443602,-320.14207061,0.00013,2]
[327716960,1716371443613,-5015.05183224,0.00013,2]
[327716961,1716371443625,-2994.75000033,0.00013,2]
[327716980,1716371445857,-7289.8434,0.00013,2]
[327716981,1716371445870,-34681.60244303,0.00013,2]
[327716982,1716371446069,-1135.0,0.00013,2]
[327717063,1716371736808,474.24,0.00011983,2]
[327717064,1716371781447,6547.0,0.00011983,2]
[327717065,1716371828320,163.46,0.00011983,2]
[327717066,1716371899811,191.34,0.00011945,2]
[327717067,1716371942838,233.62,0.00010027,2]
[327717068,1716371943147,200.0,0.00011945,2]
[327717070,1716372107204,250.0,0.00011909,2]
[327717071,1716372146907,331.82,0.00011901,2]
[327717072,1716372207932,707.23,0.0001189,2]
[327717073,1716372242245,5339.5,0.0001189,2]
[327717074,1716372263634,157.37,0.00011983,2]
[327717075,1716372315857,23890.0,0.00011876,2]
[327717076,1716372331888,200.91092393,0.00011817,2]
[327717077,1716372386905,12470.98795021,0.0003,30]
[327717078,1716372414374,200.0,0.00011843,2]
[327717079,1716372451244,-155.0,0.00012002,2]
[327717080,1716372451263,-150.0,0.00012003,2]
[327717081,1716372451284,-2331.91021042,0.00012004,2]
[327717082,1716372482195,221.93,9.986e-05,2]
[327717086,1716372580366,250.0,0.00011881,2]
[327717087,1716372599322,289.85513621,0.0002,10]
[327717102,1716372632061,-852.94314479,0.00012004,2]
[327717103,1716372632714,-25709.79664479,0.00012004,2]
[327717104,1716372632723,-163.88,0.00012007,2]
[327717105,1716372632732,-157.37,0.00012108,2]
[327717106,1716372632741,-157.37,0.00012233,2]
[327717107,1716372632751,-221.93,0.0001225,2]
[327717108,1716372632760,-261.37318719,0.00012251,2]
[327717109,1716372632770,-2219.4989883,0.0001235,2]
[327717110,1716372632779,-157.37,0.00012358,2]
[327717111,1716372632788,-157.37,0.00012482,2]
[327717112,1716372632798,-157.37,0.00012607,2]
[327717113,1716372632807,-150.99,0.00012607,2]
[327717114,1716372632816,-161.04,0.0001271,2]
[327717115,1716372632825,-161.04,0.00012721,2]
[327717116,1716372632834,-499.99,0.00012721,2]
[327717117,1716372632843,-170.38,0.00012721,2]
[327717118,1716372632853,-150.99,0.00012721,2]
[327717119,1716372632862,-161.04,0.00012732,2]
[327717120,1716372632871,-161.04,0.00012742,2]
[327717121,1716372632881,-161.04,0.00012753,2]
[327717122,1716372632890,-161.04,0.00012763,2]
[327717123,1716372633008,-161.04,0.00012774,2]
[327717124,1716372633018,-1137.0,0.00012891,2]
[327717125,1716372633027,-3162.0,0.00012891,2]
[327717126,1716372633036,-155.4708019,0.00012896,2]
[327717127,1716372633046,-156.02484062,0.00012897,2]
[327717128,1716372633055,-1638.01942668,0.00012899,2]
[327717129,1716372633064,-1371.62723184,0.00012899,2]
[327717130,1716372633074,-1807.83987,0.000129,2]
[327717131,1716372633083,-313.68343413,0.000129,2]
[327717132,1716372633092,-2631.08573034,0.000129,2]
[327717133,1716372633198,-2502.91426966,0.000129,2]
[327717134,1716372633209,-2164.03017064,0.000129,2]
[327717135,1716372633220,-2753.10882936,0.000129,2]
[327717136,1716372633229,-1478.05847075,0.000129,2]
[327717137,1716372633240,-27999.1413692,0.000129,2]
[327717138,1716372633251,-5438.20934555,0.000129,2]
[327717142,1716372638002,-1976.06956245,0.000129,2]
[327717143,1716372638014,-319.8,0.000129,2]
[327717144,1716372638026,-682.72125205,0.000129,2]
[327717145,1716372638038,-1465.0,0.000129,2]
[327717146,1716372638048,-289.0,0.000129,2]
[327717147,1716372638058,-1061.0,0.000129,2]
[327717148,1716372638068,-148.73152434,0.0001297,2]
[327717149,1716372638080,-1659.10833566,0.0001297,2]
[327717150,1716372638089,-988.3781187,0.00012987,2]
[327717151,1716372638099,-863.7041597,0.00012991,2]
[327717152,1716372638109,-739.0302006,0.00012991,2]
[327717153,1716372638118,-614.3562415,0.00012991,2]
[327717154,1716372638128,-2212.38783149,0.00012996,2]
[327717155,1716372638140,-1514.24316851,0.00012996,2]
[327717156,1716372638149,-46334.89682728,0.00012999,2]
[327717157,1716372638199,-323.97031072,0.00012999,2]
[327717159,1716372638213,-25747.37244182,0.00012999,2]
[327717160,1716372638222,-8025.80797414,0.00012999,2]
[327717161,1716372638232,-150.01,0.00012999,2]
[327717162,1716372638241,-1165.04079101,0.00012999,2]
[327717163,1716372638251,-439601.68035863,0.00013,2]
[327717164,1716372638264,-14334.97424228,0.00013,2]
[327717168,1716372640211,-598.96896904,0.00013,2]
[327717170,1716372640222,-1848.21879468,0.00013,2]
[327717173,1716372640234,-439.54636968,0.00013,2]
[327717184,1716372640427,-1212.14956,0.00013,2]
[327717185,1716372640440,-34815.82358329,0.00013,2]
[327717186,1716372640456,-2353.04479425,0.00013,2]
[327717187,1716372640471,-6265.47574959,0.00013,2]
[327717188,1716372640483,-504.36232548,0.00013,2]
[327717189,1716372640496,-593.14,0.00013,2]
[327717190,1716372640641,-671.80019193,0.00013,2]
[327717191,1716372640653,-16451.06608166,0.00013,2]
[327717224,1716372643384,-165.92734366,0.00012899,2]
[327717225,1716372643399,-155.0,0.00012899,2]
[327717226,1716372643415,-582.5203955,0.00012999,2]
[327717227,1716372643431,-539.75369311,0.00013,2]
[327717228,1716372643449,-1684.8418161,0.00013,2]
[327717229,1716372643469,-5982.42897999,0.00013,2]
[327717230,1716372643534,-228336.14643999,0.00013,2]
[327717231,1716372643550,-59069.79416786,0.00013,2]
[327717232,1716372643569,-2807.69427482,0.00013,2]
[327717233,1716372643589,-2983.20659951,0.00013,2]
[327717234,1716372643608,-509.0860554,0.00013,2]
[327717252,1716372643880,-10820.52681283,0.00013,2]
[327717268,1716372646356,-364.3773585,0.00012999,2]
[327717271,1716372646366,-685.1626415,0.00013,2]
[327717292,1716372658382,750.94633531,0.00011698,2]
[327717293,1716372711495,945.73720464,0.00011698,2]
[327717294,1716372727664,945.73720464,0.00011698,2]
[327717295,1716372743496,945.73720464,0.00011698,2]
[327717297,1716372761497,945.73720464,0.00011698,2]
[327717298,1716372771796,-1273.20131825,0.00012278,2]
[327717299,1716372771821,-428.58259162,0.00012279,2]
[327717300,1716372771844,-656.19,0.0001228,2]
[327717301,1716372771864,-1715.02609013,0.00012799,2]
[327717303,1716372783510,945.73720464,0.00011698,2]
[327717304,1716372801528,945.73720464,0.00011698,2]
[327717305,1716372819513,945.73720464,0.00011698,2]
[327717306,1716372837516,713.02026752,0.00011698,2]
[327717307,1716372987759,223.91,0.00010248,2]
[327717308,1716373125480,934.95,0.00011996,2]
[327717309,1716373215971,565.78,0.00011991,2]
[327717310,1716373299629,23890.0,0.00011972,2]
[327717311,1716373330663,250.0,0.00011991,2]
[327717314,1716373451452,1399.799,0.00031,120]
[327717315,1716373543109,150.0,0.00011985,2]
[327717316,1716373556485,212.71,0.0001013,2]
[327717320,1716373651254,-150.0,0.00012013,2]
[327717321,1716373651275,-268.35492957,0.00012014,2]
[327717322,1716373651297,-372.32307412,0.00012014,2]
[327717342,1716373832079,-268.35492957,0.00012007,2]
[327717344,1716373832088,-73.1259542,0.00012008,2]
[327717347,1716373832289,-104.42427194,0.00012008,2]
[327717348,1716373832301,-729.37366122,0.00012013,2]
[327717349,1716373832313,-318.86689986,0.00012013,2]
[327717350,1716373832324,-690.20000005,0.00012013,2]
[327717351,1716373832336,-8791.02638317,0.00012013,2]
[327717352,1716373832346,-20300.53838665,0.00012014,2]
[327717353,1716373832356,-19730.16017374,0.00012014,2]
[327717354,1716373832365,-168.11,0.00012016,2]
[327717355,1716373832374,-177.55022598,0.00012055,2]
[327717356,1716373832383,-177.55022598,0.00012102,2]
[327717357,1716373832393,-250.0,0.00012108,2]
[327717358,1716373832402,-622.96,0.00012108,2]
[327717359,1716373832412,-524.95,0.00012108,2]
[327717360,1716373832421,-177.55022598,0.00012149,2]
[327717361,1716373832431,-161.1,0.00012166,2]
[327717362,1716373832440,-1244.75977175,0.00012176,2]
[327717363,1716373832450,-1790.38168817,0.00012177,2]
[327717364,1716373832460,-55700.22628293,0.00012178,2]
[327717365,1716373832469,-177.55022598,0.00012196,2]
[327717366,1716373832478,-163.88,0.00012226,2]
[327717367,1716373832488,-177.55022598,0.00012243,2]
[327717368,1716373832497,-177.55022598,0.0001229,2]
[327717369,1716373832507,-177.55022598,0.00012337,2]
[327717371,1716373832516,-177.55022598,0.00012384,2]
[327717372,1716373832526,-212.71,0.00012394,2]
[327717374,1716373832535,-177.55022598,0.00012431,2]
[327717376,1716373832546,-177.55022598,0.00012477,2]
[327717378,1716373832555,-177.55022598,0.00012524,2]
[327717379,1716373832565,-177.55022598,0.00012571,2]
[327717380,1716373832574,-177.55022598,0.00012618,2]
[327717381,1716373832584,-1564.1179518,0.00012649,2]
[327717382,1716373832593,-177.55022598,0.00012665,2]
[327717383,1716373832603,-177.55022598,0.00012712,2]
[327717384,1716373832612,-177.55022598,0.00012759,2]
[327717385,1716373832621,-499.99,0.00012799,2]
[327717386,1716373832631,-870.02,0.000128,2]
[327717387,1716373832640,-870.02,0.000128,2]
[327717388,1716373832649,-194.98,0.000128,2]
[327717389,1716373832658,-150.99,0.000128,2]
[327717390,1716373832668,-177.55022598,0.00012806,2]
[327717391,1716373832677,-177.55022598,0.00012853,2]
[327717392,1716373832686,-1116.61922,0.0001287,2]
[327717393,1716373832695,-200.0,0.00012895,2]
[327717394,1716373832705,-1000.0,0.00012895,2]
[327717395,1716373832714,-200.0,0.00012896,2]
[327717397,1716373832723,-1000.0,0.00012896,2]
[327717399,1716373832733,-1000.0,0.00012896,2]
[327717401,1716373832743,-200.0,0.00012896,2]
[327717403,1716373832753,-474.6405,0.00012898,2]
[327717404,1716373832762,-450.2317,0.00012898,2]
[327717405,1716373832771,-2759.10415146,0.000129,2]
[327717406,1716373832781,-41999.8593,0.000129,2]
[327717407,1716373832790,-158.1095261,0.000129,2]
[327717408,1716373832800,-1257.25789953,0.000129,2]
[327717409,1716373832809,-1000.0,0.000129,2]
[327717410,1716373832819,-1000.0,0.000129,2]
[327717411,1716373832828,-1000.0,0.000129,2]
[327717412,1716373832838,-1000.0,0.000129,2]
[327717413,1716373832851,-1000.0,0.000129,2]
[327717414,1716373832861,-1021.0,0.000129,2]
[327717415,1716373832870,-1000.0,0.000129,2]
[327717416,1716373832880,-1000.0,0.000129,2]
[327717417,1716373832890,-1263.0,0.000129,2]
[327717418,1716373832900,-267.67820455,0.000129,2]
[327717419,1716373832909,-321.44760385,0.000129,2]
[327717420,1716373832919,-1226.0,0.000129,2]
[327717421,1716373832932,-199.96781807,0.000129,2]
[327717422,1716373832942,-158.43787398,0.000129,2]
[327717423,1716373832951,-1239.96876459,0.000129,2]
[327717424,1716373832961,-3454.24037439,0.00012984,2]
[327717425,1716373832971,-385.0500488,0.00012987,2]
[327717426,1716373832980,-243.4399112,0.00012987,2]
[327717427,1716373832989,-429.37312867,0.0001299,2]
[327717428,1716373832999,-309.3916296,0.00012991,2]
[327717429,1716373833009,-375.3433479,0.00012991,2]
[327717430,1716373833018,-441.2950662,0.00012991,2]
[327717431,1716373833028,-171.08071776,0.00012996,2]
[327717432,1716373833464,-253.92241788,0.00012996,2]
[327717433,1716373833477,-560.90534678,0.00012996,2]
[327717434,1716373833486,-155.0,0.00012998,2]
[327717435,1716373833496,-427.02692627,0.00012998,2]
[327717436,1716373833505,-441.68283259,0.00012998,2]
[327717437,1716373833514,-800.95683338,0.00012998,2]
[327717438,1716373833526,-3944.16854037,0.00012998,2]
[327717439,1716373833535,-409.76814462,0.00012998,2]